fUSD/lending_fUSD_20240527
["ID","MTS","AMOUNT","RATE_DAILY","PERIOD"]
[328044607,1716814257644,-1527.59,0.00032876,7]
[328044608,1716814257654,-2225.13,0.00032876,7]
[328044609,1716814257663,-1527.59,0.00032876,7]
[328044610,1716814257673,-2225.13,0.00032876,7]
[328044611,1716814257682,-2225.13,0.00032876,7]
[328044612,1716814257692,-1527.59,0.00032876,7]
[328044613,1716814257701,-1527.59,0.00032876,7]
[328044614,1716814257711,-500.0,0.00032876,7]
[328044615,1716814257720,-1527.59,0.00032876,7]
[328044616,1716814257730,-500.0,0.00032876,7]
[328044617,1716814257740,-1527.59,0.00032876,7]
[328044618,1716814257749,-171.16825897,0.00032876,7]
[328044619,1716814257758,-1527.59,0.00032876,7]
[328044620,1716814257768,-1527.66980298,0.00032876,7]
[328044621,1716814257777,-627.94860211,0.00032876,7]
[328044622,1716814257786,-1648.01,0.00032876,7]
[328044623,1716814257796,-1648.01,0.00032876,7]
[328044624,1716814257805,-500.0,0.00032876,7]
[328044625,1716814257814,-500.0,0.00032876,7]
[328044626,1716814257824,-1648.01,0.00032876,7]
[328044627,1716814257833,-500.0,0.00032876,7]
[328044628,1716814257842,-500.0,0.00032876,7]
[328044629,1716814257852,-1648.01,0.00032876,7]
[328044630,1716814257863,-512.95715484,0.00032876,7]
[328044631,1716814257872,-500.0,0.00032876,7]
[328044632,1716814257882,-500.0,0.00032876,7]
[328044633,1716814257891,-1648.01,0.00032876,7]
[328044634,1716814257900,-500.0,0.00032876,7]
[328044635,1716814257910,-500.0,0.00032876,7]
[328044636,1716814257919,-1648.01,0.00032876,7]
[328044637,1716814257928,-500.0,0.00032876,7]
[328044638,1716814257937,-1648.01,0.00032876,7]
[328044639,1716814257946,-635.15,0.00032876,7]
[328044640,1716814257955,-1648.01,0.00032876,7]
[328044641,1716814257964,-1648.01,0.00032876,7]
[328044642,1716814257974,-500.0,0.00032876,7]
[328044643,1716814257984,-1648.01,0.00032876,7]
[328044644,1716814257993,-500.0,0.00032876,7]
[328044645,1716814258002,-1648.01,0.00032876,7]
[328044646,1716814258011,-500.0,0.00032876,7]
[328044647,1716814258021,-500.0,0.00032876,7]
[328044648,1716814258030,-1648.01,0.00032876,7]
[328044649,1716814258040,-500.0,0.00032876,7]
[328044650,1716814258049,-516.71776243,0.00032876,7]
[328044651,1716814258058,-1648.01,0.00032876,7]
[328044652,1716814258068,-500.0,0.00032876,7]
[328044653,1716814258078,-1648.01,0.00032876,7]
[328044654,1716814258088,-1648.01,0.00032876,7]
[328044655,1716814258098,-1648.01,0.00032876,7]
[328044656,1716814258107,-1648.01,0.00032876,7]
[328044657,1716814258116,-500.0,0.00032876,7]
[328044658,1716814258126,-1648.01,0.00032876,7]
[328044659,1716814258135,-500.0,0.00032876,7]
[328044660,1716814258145,-1648.01,0.00032876,7]
[328044661,1716814258155,-1648.01,0.00032876,7]
[328044662,1716814258164,-1648.01,0.00032876,7]
[328044663,1716814258174,-500.0,0.00032876,7]
[328044664,1716814258183,-1648.01,0.00032876,7]
[328044665,1716814258194,-349.04620529,0.00032876,7]
[328044666,1716814258203,-1648.01,0.00032876,7]
[328044667,1716814258213,-1648.11093415,0.00032876,7]
[328044668,1716814258222,-500.0,0.00032876,7]
[328044669,1716814258233,-500.0,0.00032876,7]
[328044670,1716814258243,-538.00402914,0.00032876,7]
[328044671,1716814258253,-500.0,0.00032876,7]
[328044672,1716814258263,-500.0,0.00032876,7]
[328044673,1716814258272,-198.51521352,0.00032876,7]
[328044674,1716814258284,-1764.59,0.00032876,7]
[328044675,1716814258294,-631.18,0.00032876,7]
[328044676,1716814258305,-1764.59,0.00032876,7]
[328044677,1716814258315,-1764.59,0.00032876,7]
[328044678,1716814258325,-500.0,0.00032876,7]
[328044679,1716814258335,-1764.59,0.00032876,7]
[328044680,1716814258345,-500.0,0.00032876,7]
[328044681,1716814258362,-500.0,0.00032876,7]
[328044682,1716814258371,-1764.59,0.00032876,7]
[328044683,1716814258381,-360.42,0.00032876,7]
[328044684,1716814258392,-500.0,0.00032876,7]
[328044685,1716814258401,-1764.59,0.00032876,7]
[328044686,1716814258411,-500.0,0.00032876,7]
[328044687,1716814258421,-500.0,0.00032876,7]
[328044688,1716814258431,-205.25541178,0.00032876,7]
[328044689,1716814259036,-1559.33458822,0.00032876,7]
[328044690,1716814259046,-500.0,0.00032876,7]
[328044691,1716814259055,-308.42182759,0.00032876,7]
[328044692,1716814259065,-1764.59,0.00032876,7]
[328044693,1716814259075,-1764.59,0.00032876,7]
[328044694,1716814259085,-500.0,0.00032876,7]
[328044695,1716814259095,-500.0,0.00032876,7]
[328044696,1716814259104,-19.86358419,0.00032876,7]
[328044699,1716815136149,-150.0,0.00019725,2]
[328044700,1716815136168,-696.0,0.000245,3]
[328044701,1716815136188,-221.14,0.00029496,2]
[328044702,1716815136209,-33.96057161,0.00029587,2]
[328044703,1716815249094,-158.54105395,0.00027032,2]
[328044704,1716815249116,-154.41114779,0.00027189,2]
[328044705,1716815249136,-154.41114779,0.00028551,2]
[328044706,1716815249157,-157.49088874,0.00029167,2]
[328044707,1716815249178,-227.05296754,0.00029587,2]
[328044708,1716815249199,-150.0,0.00031262,2]
[328044709,1716815249219,-200.0,0.00031371,2]
[328044710,1716815249240,-154.41114779,0.00031384,7]
[328044711,1716815249261,-250.0,0.00031405,2]
[328044712,1716815249282,-160.01,0.00031435,2]
[328044713,1716815249303,-1599.68,0.00031513,2]
[328044714,1716815249322,-306.35,0.00031513,2]
[328044715,1716815249344,-11.02337656,0.00031529,2]
[328044731,1716815431948,-153.78958093,0.0002977,2]
[328044732,1716815431958,-150.0,0.00031267,2]
[328044733,1716815431967,-250.0,0.00031627,2]
[328044734,1716815431976,-2236.55100815,0.00031627,2]
[328044735,1716815432015,-3850.31055054,0.00031627,2]
[328044736,1716815432086,-380.04295626,0.00031627,2]
[328044737,1716815432100,-595.82225549,0.00031627,2]
[328044784,1716815437869,-2202.83073604,0.00031627,2]
[328044785,1716815437881,-11281.41034226,0.00031627,2]
[328044787,1716815437898,-3332.00215126,0.00031627,2]
[328044790,1716815437908,-1066.12,0.00031661,2]
[328044792,1716815437918,-815.11949314,0.00031661,2]
[328044793,1716815437931,-4050.82050686,0.00031661,2]
[328044794,1716815437941,-1920.56,0.00031661,2]
[328044795,1716815437950,-150.99,0.00031661,2]
[328044796,1716815437960,-497.14,0.00031699,2]
[328044797,1716815437970,-221.14,0.0003176,2]
[328044798,1716815437980,-170.9,0.0003205,2]
[328044799,1716815437990,-1399.21449314,0.00032213,2]
[328044800,1716815438006,-1809.91250686,0.00032213,2]
[328044801,1716815438017,-200.0,0.00032526,120]
[328044802,1716815438027,-291.99287,0.0003255,2]
[328044803,1716815438037,-392.8545,0.000326,2]
[328044804,1716815438047,-995.165,0.000326,2]
[328044805,1716815438058,-500.0,0.000326,2]
[328044806,1716815438067,-175.56191762,0.00032765,10]
[328044807,1716815438077,-3910.70262031,0.00032776,4]
[328044808,1716815438087,-522.22082231,0.00032776,2]
[328044809,1716815438096,-204.50350122,0.00032776,2]
[328044810,1716815438107,-326.27937826,0.00032776,2]
[328044811,1716815438122,-309.64604086,0.00032776,2]
[328044812,1716815438131,-154.41114779,0.00032798,7]
[328044813,1716815438140,-1081.44556209,0.000328,7]
[328044814,1716815438158,-152.55443791,0.000328,7]
[328044815,1716815438167,-3910.70262031,0.00032817,4]
[328044816,1716815438177,-522.22082229,0.0003284,2]
[328044817,1716815438187,-4314.90804987,0.00032844,4]
[328044818,1716815438197,-50092.0,0.00032853,5]
[328044819,1716815438207,-3910.70262031,0.00032858,4]
[328044820,1716815438217,-34050.2390491,0.00032865,2]
[328044821,1716815438227,-2702.42027282,0.00032865,2]
[328044822,1716815438240,-2921.37035358,0.00032865,2]
[328044823,1716815438250,-414.1428591,0.00032865,2]
[328044824,1716815438260,-757.23105072,0.00032865,2]
[328044825,1716815438270,-2826.0866022,0.00032865,2]
[328044826,1716815438280,-746.0606768,0.00032865,2]
[328044827,1716815438291,-10534.38874337,0.00032875,4]
[328044828,1716815438300,-2925.0,0.00032875,6]
[328044829,1716815438310,-157.0,0.00032876,5]
[328044830,1716815438320,-17005.01599836,0.00032876,11]
[328044831,1716815438330,-500.0,0.00032876,7]
[328044832,1716815438339,-154.8911572,0.00032876,7]
[328044834,1716815438353,-291.70028004,0.00032876,7]
[328044836,1716815438363,-524.81472794,0.00032876,7]
[328044838,1716815438372,-500.0,0.00032876,7]
[328044839,1716815438382,-505.75116104,0.00032876,7]
[328044840,1716815438392,-500.0,0.00032876,7]
[328044841,1716815438401,-508.11595075,0.00032876,7]
[328044843,1716815438412,-504.46991773,0.00032876,7]
[328044844,1716815438422,-500.0,0.00032876,7]
[328044845,1716815438432,-500.0,0.00032876,7]
[328044846,1716815438441,-500.0,0.00032876,7]
[328044847,1716815438451,-428.23680751,0.00032876,7]
[328044848,1716815438461,-613.85024924,0.00032876,7]
[328044849,1716815438470,-504.8280821,0.00032876,7]
[328044850,1716815438479,-500.0,0.00032876,7]
[328044851,1716815438489,-500.0,0.00032876,7]
[328044852,1716815438498,-474.11208761,0.00032876,7]
[328044853,1716815438513,-25.88791239,0.00032876,7]
[328044854,1716815438523,-500.0,0.00032876,7]
[328044855,1716815438532,-500.0,0.00032876,7]
[328044856,1716815438542,-506.22770937,0.00032876,7]
[328044857,1716815438551,-509.05885477,0.00032876,7]
[328044858,1716815438560,-500.40311713,0.00032876,7]
[328044859,1716815438570,-500.0,0.00032876,7]
[328044860,1716815438580,-482.74,0.00032876,7]
[328044861,1716815438590,-500.0,0.00032876,7]
[328044862,1716815438600,-500.0,0.00032876,7]
[328044863,1716815438610,-500.0,0.00032876,7]
[328044864,1716815438619,-500.0,0.00032876,7]
[328044865,1716815438628,-187.9076828,0.00032876,7]
[328044866,1716815438638,-500.0,0.00032876,7]
[328044867,1716815438647,-500.0,0.00032876,7]
[328044868,1716815438656,-284.19,0.00032876,7]
[328044869,1716815438666,-500.0,0.00032876,7]
[328044870,1716815438676,-500.0,0.00032876,7]
[328044871,1716815438685,-500.0,0.00032876,7]
[328044872,1716815438694,-502.87276164,0.00032876,7]
[328044873,1716815438704,-555.11478203,0.00032876,7]
[328044874,1716815438717,-500.0,0.00032876,7]
[328044875,1716815438727,-220.41203443,0.00032876,7]
[328044876,1716815438736,-620.73437979,0.00032876,7]
[328044877,1716815438748,-500.0,0.00032876,7]
[328044878,1716815438759,-500.0,0.00032876,7]
[328044879,1716815438768,-500.0,0.00032876,7]
[328044880,1716815438778,-500.0,0.00032876,7]
[328044881,1716815438789,-500.0,0.00032876,7]
[328044882,1716815438798,-500.0,0.00032876,7]
[328044883,1716815438808,-353.23,0.00032876,7]
[328044884,1716815438818,-319.58411889,0.00032876,7]
[328044885,1716815438828,-500.0,0.00032876,7]
[328044886,1716815438837,-500.0,0.00032876,7]
[328044887,1716815438846,-150.32,0.00032876,7]
[328044888,1716815438858,-300.6104504,0.00032876,7]
[328044889,1716815438867,-519.10856865,0.00032876,7]
[328044890,1716815438877,-500.0,0.00032876,7]
[328044891,1716815438886,-616.08,0.00032876,7]
[328044892,1716815438895,-500.0,0.00032876,7]
[328044893,1716815438904,-501.54436365,0.00032876,7]
[328044894,1716815438913,-592.75,0.00032876,7]
[328044895,1716815438923,-504.57406767,0.00032876,7]
[328044896,1716815438932,-511.7672946,0.00032876,7]
[328044897,1716815438941,-509.24836075,0.00032876,7]
[328044898,1716815438950,-512.5621293,0.00032876,7]
[328044899,1716815438959,-514.47299983,0.00032876,7]
[328044900,1716815438968,-505.49494412,0.00032876,7]
[328044901,1716815438977,-523.01404284,0.00032876,7]
[328044902,1716815438987,-500.0,0.00032876,7]
[328044903,1716815438996,-509.42389511,0.00032876,7]
[328044904,1716815439006,-500.0,0.00032876,7]
[328044905,1716815439017,-501.96443208,0.00032876,7]
[328044906,1716815439027,-500.0,0.00032876,7]
[328044907,1716815439036,-515.07566996,0.00032876,7]
[328044908,1716815439046,-500.0,0.00032876,7]
[328044909,1716815439055,-500.0,0.00032876,7]
[328044910,1716815439065,-500.0,0.00032876,7]
[328044911,1716815439074,-509.85799959,0.00032876,7]
[328044912,1716815439083,-500.0,0.00032876,7]
[328044913,1716815439092,-515.68492005,0.00032876,7]
[328044914,1716815439102,-500.0,0.00032876,7]
[328044915,1716815439111,-502.69541622,0.00032876,7]
[328044916,1716815439120,-500.0,0.00032876,7]
[328044917,1716815439129,-519.58981978,0.00032876,7]
[328044918,1716815439139,-500.0,0.00032876,7]
[328044919,1716815439148,-604.42,0.00032876,7]
[328044920,1716815439158,-532.18607593,0.00032876,7]
[328044921,1716815439168,-82.32720635,0.00032876,7]
[328044922,1716815439205,-382.52126046,0.00032876,7]
[328044929,1716815440754,-42.94897626,0.00032876,7]
[328044930,1716815440766,-391.53102374,0.00032876,7]
[328044931,1716815440778,-114.19754767,0.00032876,7]
[328044932,1716815440788,-508.04143948,0.00032876,7]
[328044933,1716815440801,-505.36024554,0.00032876,7]
[328044934,1716815440811,-500.0,0.00032876,7]
[328044935,1716815440821,-500.0,0.00032876,7]
[328044936,1716815440831,-500.0,0.00032876,7]
[328044937,1716815440840,-282.09124304,0.00032876,7]
[328044938,1716815440855,-71.38008556,0.00032876,7]
[328044939,1716815440865,-500.0,0.00032876,7]
[328044940,1716815440874,-500.0,0.00032876,7]
[328044941,1716815440883,-300.18491444,0.00032876,7]
[328044942,1716815441610,-199.81508556,0.00032876,7]
[328044943,1716815441619,-500.0,0.00032876,7]
[328044944,1716815441628,-509.39748332,0.00032876,7]
[328044945,1716815441638,-500.0,0.00032876,7]
[328044946,1716815441647,-508.85568371,0.00032876,7]
[328044947,1716815441656,-500.0,0.00032876,7]
[328044948,1716815441665,-450.0,0.00032876,7]
[328044949,1716815441674,-506.05316256,0.00032876,7]
[328044950,1716815441684,-282.07163193,0.00032876,7]
[328044951,1716815441697,-217.92836807,0.00032876,7]
[328044952,1716815441706,-242.36286212,0.00032876,7]
[328044953,1716815441731,-257.63713788,0.00032876,7]
[328044954,1716815441740,-254.1773565,0.00032876,7]
[328044955,1716815441752,-245.8226435,0.00032876,7]
[328044956,1716815441762,-500.0,0.00032876,7]
[328044957,1716815441772,-500.0,0.00032876,7]
[328044958,1716815441781,-500.0,0.00032876,7]
[328044959,1716815441791,-532.88854744,0.00032876,7]
[328044960,1716815441802,-500.0,0.00032876,7]
[328044961,1716815441811,-500.0,0.00032876,7]
[328044962,1716815441820,-487.09090906,0.00032876,7]
[328044963,1716815441834,-12.90909094,0.00032876,7]
[328044964,1716815441843,-547.50545314,0.00032876,7]
[328044965,1716815441854,-506.1565305,0.00032876,7]
[328044966,1716815441863,-500.0,0.00032876,7]
[328044967,1716815441873,-500.0,0.00032876,7]
[328044968,1716815441882,-508.50390491,0.00032876,7]
[328044970,1716815441891,-500.0,0.00032876,7]
[328044972,1716815441900,-500.0,0.00032876,7]
[328044973,1716815441910,-500.0,0.00032876,7]
[328044974,1716815441919,-500.0,0.00032876,7]
[328044975,1716815441928,-500.0,0.00032876,7]
[328044976,1716815441938,-157.58465051,0.00032876,7]
[328044987,1716815442906,-442.41534949,0.00032876,7]
[328044988,1716815442916,-218.89779111,0.00032876,7]
[328044989,1716815442928,-281.10220889,0.00032876,7]
[328044990,1716815442937,-500.0,0.00032876,7]
[328044991,1716815442947,-500.0,0.00032876,7]
[328044992,1716815442957,-500.0,0.00032876,7]
[328044993,1716815442966,-500.0,0.00032876,7]
[328044994,1716815442976,-500.0,0.00032876,7]
[328044995,1716815442986,-500.0,0.00032876,7]
[328044996,1716815442995,-500.0,0.00032876,7]
[328044997,1716815443005,-500.0,0.00032876,7]
[328044998,1716815443014,-500.0,0.00032876,7]
[328044999,1716815443024,-500.0,0.00032876,7]
[328045000,1716815443035,-500.0,0.00032876,7]
[328045001,1716815443045,-500.0,0.00032876,7]
[328045002,1716815443055,-636.29,0.00032876,7]
[328045003,1716815443065,-500.0,0.00032876,7]
[328045004,1716815443075,-500.0,0.00032876,7]
[328045005,1716815443086,-500.0,0.00032876,7]
[328045006,1716815443096,-500.0,0.00032876,7]
[328045007,1716815443110,-500.0,0.00032876,7]
[328045008,1716815443120,-231.95,0.00032876,7]
[328045009,1716815443130,-500.0,0.00032876,7]
[328045010,1716815443139,-500.0,0.00032876,7]
[328045011,1716815443150,-500.0,0.00032876,7]
[328045012,1716815443160,-500.0,0.00032876,7]
[328045013,1716815443170,-500.0,0.00032876,7]
[328045014,1716815443179,-500.0,0.00032876,7]
[328045015,1716815443188,-500.0,0.00032876,7]
[328045016,1716815443197,-500.0,0.00032876,7]
[328045017,1716815443206,-500.0,0.00032876,7]
[328045018,1716815443216,-500.0,0.00032876,7]
[328045019,1716815443225,-500.0,0.00032876,7]
[328045020,1716815443234,-500.0,0.00032876,7]
[328045021,1716815443244,-500.0,0.00032876,7]
[328045022,1716815443254,-500.0,0.00032876,7]
[328045023,1716815443263,-500.0,0.00032876,7]
[328045024,1716815443272,-436.05952131,0.00032876,7]
[328045025,1716815443281,-500.0,0.00032876,7]
[328045026,1716815443291,-500.0,0.00032876,7]
[328045027,1716815443300,-150.0,0.00032876,7]
[328045028,1716815443309,-500.0,0.00032876,7]
[328045029,1716815443318,-150.0,0.00032876,7]
[328045030,1716815443327,-500.0,0.00032876,7]
[328045031,1716815443337,-500.0,0.00032876,7]
[328045032,1716815443348,-500.0,0.00032876,7]
[328045033,1716815443361,-500.0,0.00032876,7]
[328045034,1716815443370,-500.0,0.00032876,7]
[328045035,1716815443379,-500.0,0.00032876,7]
[328045037,1716815443387,-500.0,0.00032876,7]
[328045039,1716815443396,-500.0,0.00032876,7]
[328045041,1716815443405,-500.0,0.00032876,7]
[328045043,1716815443414,-500.0,0.00032876,7]
[328045045,1716815443423,-500.0,0.00032876,7]
[328045047,1716815443432,-500.0,0.00032876,7]
[328045049,1716815443441,-252.73261767,0.00032876,7]
[328045051,1716815443450,-246.33,0.00032876,7]
[328045053,1716815443460,-500.0,0.00032876,7]
[328045055,1716815443469,-500.0,0.00032876,7]
[328045057,1716815443478,-500.0,0.00032876,7]
[328045059,1716815443487,-500.0,0.00032876,7]
[328045061,1716815443497,-500.0,0.00032876,7]
[328045063,1716815443506,-500.0,0.00032876,7]
[328045065,1716815443514,-500.0,0.00032876,7]
[328045067,1716815443523,-500.0,0.00032876,7]
[328045069,1716815443533,-500.0,0.00032876,7]
[328045071,1716815443542,-500.0,0.00032876,7]
[328045074,1716815443551,-514.72,0.00032876,7]
[328045077,1716815443560,-500.0,0.00032876,7]
[328045080,1716815443569,-442.34938702,0.00032876,7]
[328045083,1716815443578,-500.0,0.00032876,7]
[328045086,1716815443587,-500.0,0.00032876,7]
[328045089,1716815443596,-500.0,0.00032876,7]
[328045091,1716815443607,-500.0,0.00032876,7]
[328045093,1716815443616,-274.46,0.00032876,7]
[328045095,1716815443625,-500.0,0.00032876,7]
[328045097,1716815443634,-508.60151783,0.00032876,7]
[328045099,1716815443643,-500.0,0.00032876,7]
[328045101,1716815443652,-500.0,0.00032876,7]
[328045103,1716815443661,-506.66862723,0.00032876,7]
[328045105,1716815443671,-500.0,0.00032876,7]
[328045107,1716815443680,-500.0,0.00032876,7]
[328045109,1716815443690,-500.0,0.00032876,7]
[328045111,1716815443699,-500.0,0.00032876,7]
[328045113,1716815443709,-500.0,0.00032876,7]
[328045115,1716815443721,-500.0,0.00032876,7]
[328045117,1716815443730,-500.0,0.00032876,7]
[328045119,1716815443739,-500.0,0.00032876,7]
[328045121,1716815443748,-500.0,0.00032876,7]
[328045123,1716815443758,-500.0,0.00032876,7]
[328045125,1716815443767,-500.0,0.00032876,7]
[328045127,1716815443776,-500.0,0.00032876,7]
[328045129,1716815443785,-500.0,0.00032876,7]
[328045131,1716815443795,-500.0,0.00032876,7]
[328045132,1716815443805,-500.0,0.00032876,7]
[328045133,1716815443814,-500.0,0.00032876,7]
[328045134,1716815443823,-500.0,0.00032876,7]
[328045135,1716815443832,-500.0,0.00032876,7]
[328045136,1716815443842,-500.0,0.00032876,7]
[328045137,1716815443853,-323.16,0.00032876,7]
[328045138,1716815443862,-572.60530382,0.00032876,7]
[328045139,1716815443872,-500.0,0.00032876,7]
[328045140,1716815443881,-500.0,0.00032876,7]
[328045141,1716815443890,-500.0,0.00032876,7]
[328045142,1716815443899,-500.0,0.00032876,7]
[328045143,1716815443909,-500.0,0.00032876,7]
[328045144,1716815443919,-500.0,0.00032876,7]
[328045145,1716815443929,-500.0,0.00032876,7]
[328045146,1716815443938,-171.74,0.00032876,7]
[328045147,1716815443947,-500.0,0.00032876,7]
[328045148,1716815443956,-500.0,0.00032876,7]
[328045149,1716815443966,-287.36,0.00032876,7]
[328045150,1716815443975,-500.0,0.00032876,7]
[328045151,1716815443984,-287.01568499,0.00032876,7]
[328045152,1716815444353,-212.98431501,0.00032876,7]
[328045153,1716815444363,-500.0,0.00032876,7]
[328045155,1716815444373,-500.0,0.00032876,7]
[328045157,1716815444383,-500.0,0.00032876,7]
[328045159,1716815444393,-500.0,0.00032876,7]
[328045161,1716815444403,-520.74028098,0.00032876,7]
[328045162,1716815444412,-500.0,0.00032876,7]
[328045163,1716815444421,-500.0,0.00032876,7]
[328045164,1716815444431,-511.42241836,0.00032876,7]
[328045165,1716815444440,-500.0,0.00032876,7]
[328045166,1716815444449,-500.0,0.00032876,7]
[328045167,1716815444458,-500.0,0.00032876,7]
[328045168,1716815444467,-500.0,0.00032876,7]
[328045169,1716815444476,-500.0,0.00032876,7]
[328045170,1716815444486,-278.3408199,0.00032876,7]
[328045171,1716815444496,-500.0,0.00032876,7]
[328045172,1716815444505,-500.0,0.00032876,7]
[328045173,1716815444515,-500.0,0.00032876,7]
[328045174,1716815444524,-7.12839556,0.00032876,7]
[328045213,1716815444938,-404.83693127,0.00032876,7]
[328045215,1716815444949,-500.0,0.00032876,7]
[328045217,1716815444959,-500.0,0.00032876,7]
[328045219,1716815444969,-500.0,0.00032876,7]
[328045221,1716815444979,-500.0,0.00032876,7]
[328045223,1716815444988,-500.0,0.00032876,7]
[328045225,1716815445000,-500.0,0.00032876,7]
[328045226,1716815445010,-500.0,0.00032876,7]
[328045227,1716815445020,-400.34839511,0.00032876,7]
[328045228,1716815445030,-500.0,0.00032876,7]
[328045229,1716815445039,-283.3812797,0.00032876,7]
[328045230,1716815445056,-216.6187203,0.00032876,7]
[328045231,1716815445066,-483.1012797,0.00032876,7]
[328045232,1716815445077,-16.8987203,0.00032876,7]
[328045233,1716815445087,-500.0,0.00032876,7]
[328045234,1716815445097,-500.0,0.00032876,7]
[328045236,1716815445108,-500.0,0.00032876,7]
[328045238,1716815445117,-172.16458237,0.00032876,7]
[328045240,1716815445129,-327.83541763,0.00032876,7]
[328045242,1716815445139,-500.0,0.00032876,7]
[328045259,1716815445287,-158.44,0.00032876,7]
[328045261,1716815445297,-500.0,0.00032876,7]
[328045263,1716815445307,-500.0,0.00032876,7]
[328045265,1716815445317,-500.0,0.00032876,7]
[328045267,1716815445326,-275.62896352,0.00032876,7]
[328045268,1716815445336,-500.0,0.00032876,7]
[328045269,1716815445345,-500.0,0.00032876,7]
[328045270,1716815445356,-488.01722429,0.00032876,7]
[328045271,1716815445367,-620.0,0.00032876,7]
[328045272,1716815445376,-500.0,0.00032876,7]
[328045273,1716815445386,-500.0,0.00032876,7]
[328045274,1716815445396,-500.0,0.00032876,7]
[328045275,1716815445405,-500.0,0.00032876,7]
[328045276,1716815445415,-500.0,0.00032876,7]
[328045277,1716815445424,-500.0,0.00032876,7]
[328045278,1716815445433,-500.0,0.00032876,7]
[328045279,1716815445443,-500.0,0.00032876,7]
[328045280,1716815445452,-500.0,0.00032876,7]
[328045281,1716815445462,-356.62669294,0.00032876,7]
[328045282,1716815445472,-500.0,0.00032876,7]
[328045283,1716815445482,-500.0,0.00032876,7]
[328045284,1716815445492,-500.0,0.00032876,7]
[328045285,1716815445502,-500.0,0.00032876,7]
[328045286,1716815445512,-500.0,0.00032876,7]
[328045287,1716815445522,-500.0,0.00032876,7]
[328045288,1716815445532,-292.84651851,0.00032876,7]
[328045289,1716815445542,-500.0,0.00032876,7]
[328045290,1716815445552,-500.0,0.00032876,7]
[328045291,1716815445562,-500.0,0.00032876,7]
[328045292,1716815445572,-500.0,0.00032876,7]
[328045293,1716815445582,-500.0,0.00032876,7]
[328045294,1716815445592,-500.0,0.00032876,7]
[328045295,1716815445604,-500.0,0.00032876,7]
[328045296,1716815445613,-500.0,0.00032876,7]
[328045297,1716815445623,-500.0,0.00032876,7]
[328045298,1716815445632,-379.76420333,0.00032876,7]
[328045300,1716815445649,-120.23579667,0.00032876,7]
[328045301,1716815445659,-159.48720373,0.00032876,7]
[328045302,1716815445671,-340.51279627,0.00032876,7]
[328045303,1716815445681,-165.4,0.00032876,7]
[328045304,1716815445690,-500.0,0.00032876,7]
[328045305,1716815445700,-500.0,0.00032876,7]
[328045306,1716815445710,-500.0,0.00032876,7]
[328045307,1716815445723,-500.0,0.00032876,7]
[328045308,1716815445734,-500.0,0.00032876,7]
[328045309,1716815445744,-500.0,0.00032876,7]
[328045310,1716815445755,-500.0,0.00032876,7]
[328045311,1716815445765,-500.0,0.00032876,7]
[328045312,1716815445776,-500.0,0.00032876,7]
[328045313,1716815445786,-500.0,0.00032876,7]
[328045314,1716815445796,-613.53953052,0.00032876,7]
[328045315,1716815445807,-500.0,0.00032876,7]
[328045316,1716815445818,-500.0,0.00032876,7]
[328045317,1716815445827,-499.11348345,0.00032876,7]
[328045318,1716815445837,-500.0,0.00032876,7]
[328045319,1716815445847,-511.52660674,0.00032876,7]